bitfinex-derivatives/quotes_ETHF0:USTF0_20240830
["timestamp","ask_amount","ask_price","bid_price","bid_amount"]
[1724985204835,4.8425,2523.9,2523.4,0.39626]
[1724985205537,0.3962,2523.8,2523.4,0.39626]
[1724985205824,0.3962,2523.8,2523.3,0.39627]
[1724985206324,0.3962,2523.8,2523.2,3.6156]
[1724985206325,4.8425,2523.9,2523.4,0.39627]
[1724985206523,4.8425,2523.9,2523.4,0.39626]
[1724985206524,4.0336,2523.9,2523.4,0.39626]
[1724985206719,0.39621,2523.8,2523.3,0.39627]
[1724985206918,4.0336,2523.9,2523.3,0.39627]
[1724985207119,4.0336,2523.9,2523.0,0.4347]
[1724985207120,3.2078,2523.6,2523.0,0.39632]
[1724985207429,0.80096,2523.5,2523.0,0.39632]
[1724985207626,0.39629,2523.3,2522.9,4.57]
[1724985207926,0.4149,2523.2,2522.9,4.57]
[1724985208426,0.4149,2523.2,2522.7,40.8]
[1724985208620,0.4149,2523.2,2522.6,0.39639]
[1724985208822,0.4149,2523.2,2522.6,4.57]
[1724985209028,0.4149,2523.2,2523.0,0.39632]
[1724985209219,0.4149,2523.2,2522.8,0.39636]
[1724985209428,0.8112,2523.2,2522.7,42.04667]
[1724985210131,0.4149,2523.2,2522.7,45.47667]
[1724985210332,0.39634,2523.0,2522.7,3.43]
[1724985210633,0.4204,2522.9,2522.7,3.43]
[1724985210824,0.4204,2522.9,2522.7,44.23]
[1724985211023,0.8217,2522.9,2522.7,44.23]
[1724985211228,0.4013,2522.9,2522.7,44.23]
[1724985211435,0.8112,2523.2,2522.8,0.39636]
[1724985211631,1.2509,2523.2,2522.8,0.39636]
[1724985211937,0.8546,2523.2,2522.9,3.82634]
[1724985212235,0.8546,2523.2,2522.9,3.43]
[1724985212236,1.25091,2523.2,2522.9,3.43]
[1724985213736,0.39632,2523.1,2522.7,44.23]
[1724985214033,0.39632,2523.1,2522.7,44.62637]
[1724985214229,1.25091,2523.2,2522.7,44.62637]
[1724985214531,1.25091,2523.2,2522.5,3.6317]
[1724985214532,0.39638,2522.7,2522.5,3.43]
[1724985214729,0.39638,2522.7,2522.3,0.4129]
[1724985214928,0.39638,2522.7,2522.0,0.59022582]
[1724985214929,0.8371,2522.6,2522.0,3.43]
[1724985215121,0.39641,2522.5,2521.9,3.2078]
[1724985215321,4.36041,2522.5,2521.9,3.2078]
[1724985215525,4.36041,2522.5,2521.9,3.6043]
[1724985215526,14.74762162,2522.5,2521.9,3.6043]
[1724985215726,4.36041,2522.5,2522.0,40.8]
[1724985216232,3.964,2522.5,2522.0,40.8]
[1724985216430,3.964,2522.5,2522.2,0.39645]
[1724985216727,0.8371,2522.6,2522.3,0.4124]
[1724985216931,0.8371,2522.6,2522.3,0.80884]
[1724985217336,3.2078,2522.7,2522.3,0.4124]
[1724985217526,3.2078,2522.7,2522.4,0.40236132]
[1724985218127,1.25014,2523.0,2522.4,0.40236132]
[1724985218128,4.45794,2523.0,2522.4,0.40236132]
[1724985218534,0.8538,2523.0,2522.7,0.39637]
[1724985218730,0.3963,2523.2,2522.7,0.39636]
[1724985219036,0.3963,2523.2,2522.6,4.57]
[1724985219037,0.8538,2523.2,2522.8,0.81145]
[1724985219639,0.8538,2523.2,2522.8,0.4151]
[1724985220339,0.8538,2523.2,2522.8,0.81146]
[1724985220535,0.8538,2523.2,2522.8,0.4151]
[1724985221240,0.8538,2523.2,2523.0,0.39632]
[1724985221433,0.4395,2523.2,2523.0,0.39632]
[1724985221636,0.4395,2523.2,2522.9,0.39634]
[1724985222138,0.4395,2523.2,2522.8,0.4151]
[1724985222725,0.4395,2523.2,2523.0,0.39633]
[1724985223738,0.4395,2523.2,2523.1,0.39631]
[1724985223931,0.4255,2523.4,2523.1,0.39631]
[1724985224242,0.4036,2523.6,2523.3,0.39627]
[1724985224440,0.4036,2523.6,2522.9,48.5778]
[1724985224640,0.407,2523.5,2523.2,0.39629]
[1724985224832,0.407,2523.5,2523.1,0.39631]
[1724985225034,0.407,2523.5,2523.0,0.79912]
[1724985225234,0.407,2523.5,2523.0,0.4028]
[1724985225437,0.407,2523.5,2523.2,0.3963]
[1724985225637,0.4036,2523.6,2523.0,0.4028]
[1724985225638,0.4036,2523.6,2523.4,0.39627]
[1724985225843,0.4036,2523.6,2523.3,0.39627]
[1724985226048,0.8032,2523.9,2523.4,0.39626]
[1724985226337,0.39622,2523.7,2523.2,0.39629]
[1724985226943,0.39622,2523.7,2523.0,0.79912]
[1724985226944,0.39625,2523.5,2523.0,0.79912]
[1724985227135,0.4356,2523.4,2523.0,0.79912]
[1724985227939,0.4356,2523.4,2523.1,0.3963]
[1724985228446,0.4356,2523.4,2523.0,0.79912]
[1724985228835,0.4356,2523.4,2523.1,0.3963]
[1724985229241,0.4356,2523.4,2523.2,0.61809072]
[1724985229447,0.4356,2523.4,2523.2,1.01438072]
[1724985229632,0.4356,2523.4,2523.3,0.61809072]
[1724985230347,0.79981,2523.8,2523.3,1.01437072]
[1724985230645,0.79832,2523.7,2523.4,0.61809072]
[1724985230947,0.79832,2523.7,2523.5,0.61809072]
[1724985231247,0.79832,2523.7,2523.6,0.61809072]
[1724985231641,4.76072,2523.7,2523.6,0.61809072]
[1724985232242,4.76072,2523.7,2523.1,1.0374576]
[1724985232243,0.39624,2523.6,2523.1,1.4337576]
[1724985232437,7.5723,2523.7,2523.2,0.61810901]
[1724985232438,0.39627,2523.4,2523.2,0.61810901]
[1724985232651,3.6099,2523.7,2523.2,0.61810901]
[1724985232652,0.3995,2523.3,2523.2,0.61810901]
[1724985232851,0.3995,2523.3,2523.2,0.6181236]
[1724985234339,0.80604,2523.6,2523.2,0.6181236]
[1724985234544,0.80604,2523.6,2523.3,1.0600236]
[1724985234744,0.80604,2523.6,2523.4,0.6181236]
[1724985235040,0.80604,2523.6,2523.5,0.6181236]
[1724985235548,0.39632,2523.1,2522.9,40.8]
[1724985235744,0.39635,2522.9,2522.7,1.0374576]
[1724985235950,0.39635,2522.9,2522.8,0.61816378]
[1724985236347,0.39635,2522.9,2522.8,0.61807171]
[1724985236348,4.36035,2522.9,2522.8,0.61807171]
[1724985237449,4.0885,2523.0,2522.8,0.61807171]
[1724985237450,4.04534,2523.0,2522.8,0.61807171]
[1724985237748,4.04534,2523.0,2522.9,0.61807171]
[1724985238149,8.00934,2523.0,2522.9,0.61807171]
[1724985238652,14.42444,2523.0,2522.9,0.61807171]
[1724985238847,0.39636,2522.8,2522.6,40.8]
[1724985239044,0.39636,2522.8,2522.7,0.61810174]
[1724985239241,0.39636,2522.8,2522.7,0.61810269]
[1724985239442,4.36036,2522.8,2522.7,0.61810269]
[1724985240056,10.36036,2522.8,2522.7,0.61810269]
[1724985240261,1.38744,2522.5,2522.4,0.00595132]
[1724985240556,8.02524,2522.5,2522.4,0.00595132]
[1724985240746,0.39651,2521.9,2521.6,4.4674576]
[1724985240949,0.39651,2521.9,2521.7,0.61807433]
[1724985241246,0.3965,2521.9,2521.8,0.61807433]
[1724985241749,0.39652,2521.8,2521.6,0.00595132]
[1724985241957,0.81052,2521.8,2521.6,0.00595132]
[1724985242254,0.414,2521.8,2521.7,0.61812371]
[1724985242443,0.81052,2521.8,2521.7,0.61812371]
[1724985242643,0.81052,2521.8,2521.6,0.00595132]
[1724985242644,0.3965,2521.9,2521.8,0.20948]
[1724985242843,1.38776,2521.9,2521.8,0.20948]
[1724985243060,5.35336,2521.9,2521.8,0.20948]
[1724985243455,5.79116,2521.9,2521.8,0.20948]
[1724985243764,4.4034,2521.9,2521.8,0.20948]
[1724985244057,0.3965,2521.9,2521.8,0.20948]
[1724985244253,4.3621,2521.9,2521.8,0.20948]
[1724985244453,4.3621,2521.9,2521.6,0.00595132]
[1724985244653,3.2078,2521.7,2521.6,0.00595132]
[1724985245055,3.60433,2521.7,2521.6,0.00595132]
[1724985245254,7.56993,2521.7,2521.6,0.00595132]
[1724985246160,13.56993,2521.7,2521.6,0.00595132]
[1724985246351,14.39503,2521.7,2521.6,0.00595132]
[1724985247060,8.39503,2521.7,2521.6,0.00595132]
[1724985250355,0.39659,2521.4,2521.1,0.4311]
[1724985250555,0.3966,2521.3,2521.1,0.4311]
[1724985251956,3.2078,2521.4,2521.1,0.4311]
[1724985251957,0.39661,2521.2,2521.1,0.4311]
[1724985252259,9.42044,2521.7,2521.1,0.4311]
[1724985252260,0.39661,2521.3,2521.1,0.4311]
[1724985252461,0.39659,2521.4,2521.1,0.4311]
[1724985253058,0.3966,2521.3,2521.1,0.4311]
[1724985253364,0.3966,2521.3,2520.9,0.43445132]
[1724985253365,0.39664,2521.0,2520.9,0.43445132]
[1724985253551,3.60444,2521.0,2520.9,0.00595132]
[1724985253755,0.39664,2521.0,2520.9,0.00595132]
[1724985254360,0.39663,2521.2,2520.9,0.00595132]
[1724985254567,0.39661,2521.2,2520.9,0.44455132]
[1724985255754,0.39663,2521.1,2520.9,0.44455132]
[1724985256462,0.39662,2521.2,2520.9,0.44455132]
[1724985256652,3.2078,2521.3,2520.9,0.44455132]
[1724985256653,3.6044,2521.3,2520.9,0.44455132]
[1724985257454,3.6044,2521.3,2521.0,0.39664]
[1724985257455,3.2078,2521.3,2521.0,0.39664]
[1724985257660,3.2078,2521.3,2521.1,0.4425]
[1724985257967,3.2078,2521.3,2521.1,0.8596]
[1724985258368,4.174,2521.6,2521.1,1.25623]
[1724985258369,4.57056,2521.6,2521.1,1.25623]
[1724985258572,4.57056,2521.6,2521.2,0.39661]
[1724985258770,4.174,2521.6,2521.2,0.39661]
[1724985258967,4.57055,2521.6,2521.2,0.39661]
[1724985259356,4.57055,2521.6,2521.1,1.25622]
[1724985259670,4.57055,2521.6,2521.2,0.39661]
[1724985259863,4.57055,2521.6,2521.1,1.25622]
[1724985260065,4.174,2521.6,2521.2,6.6378]
[1724985260265,3.2078,2522.0,2521.8,0.39652]
[1724985260469,0.00595132,2522.1,2521.9,41.6051]
[1724985261468,0.00595132,2522.1,2521.9,42.0016]
[1724985261772,0.00595132,2522.1,2521.9,41.6051]
[1724985261971,0.00595132,2522.1,2522.0,0.39649]
[1724985262169,0.00595132,2522.1,2521.9,48.9999]
[1724985262170,0.00595132,2522.1,2521.9,41.6051]
[1724985269677,0.39649,2522.0,2521.9,0.8051]
[1724985269866,0.39649,2522.0,2521.9,0.4023]
[1724985270477,3.61023132,2522.1,2521.9,0.4023]
[1724985271277,0.40243132,2522.1,2521.9,0.4023]
[1724985271680,0.00595132,2522.1,2521.9,0.4023]
[1724985272279,0.40243132,2522.1,2521.9,0.4023]
[1724985272476,0.39649,2522.0,2521.9,0.4023]
[1724985274982,4.03523132,2522.1,2521.9,0.4023]
[1724985275574,4.03522132,2522.1,2521.9,0.4023]
[1724985275774,4.03523132,2522.1,2521.9,0.4023]
[1724985279492,3.63875132,2522.1,2521.9,0.4023]
[1724985279690,3.21375132,2522.1,2522.0,0.39649]
[1724985280204,3.21375132,2522.1,2522.0,40.8]
[1724985281206,3.21375132,2522.1,2522.0,41.41803846]
[1724985282406,3.21375132,2522.1,2522.0,40.8]
[1724985282606,3.21375132,2522.1,2522.0,41.81453619]
[1724985285196,3.21375132,2522.1,2522.0,41.19649]
[1724985286202,3.21375132,2522.1,2522.0,40.8]
[1724985286801,3.21375132,2522.1,2522.0,41.41802221]
[1724985287007,3.21375132,2522.1,2522.0,40.8]
[1724985287503,0.00595132,2522.1,2522.0,40.8]
[1724985288414,0.00595132,2522.1,2522.0,41.41803593]
[1724985288804,0.00595132,2522.1,2522.0,41.81452593]
[1724985289808,0.00595132,2522.1,2522.0,42.43255043]
[1724985291009,0.00595132,2522.1,2522.0,42.03606043]
[1724985291912,0.00595132,2522.1,2522.0,41.8145145]
[1724985292815,0.00595132,2522.1,2522.0,41.4180245]
[1724985295919,4.36722132,2522.1,2522.0,0.6180245]
[1724985296607,0.3965,2522.0,2521.7,40.8]
[1724985296807,0.39651,2521.9,2521.8,0.61808231]
[1724985297013,4.73343926,2521.9,2521.8,0.61808231]
[1724985297214,8.69903926,2521.9,2521.8,0.61808231]
[1724985298012,0.39658,2521.5,2521.3,3.2078]
[1724985298214,0.39658,2521.5,2521.4,0.61812814]
[1724985298405,3.2078,2521.7,2521.4,0.61812814]
[1724985298406,0.39655,2521.6,2521.4,0.61812814]
[1724985298608,0.39655,2521.6,2521.5,0.61812814]
[1724985298813,0.39655,2521.6,2521.3,44.0078]
[1724985300212,3.2078,2521.8,2521.5,0.39656]
[1724985300420,3.2078,2521.8,2521.6,0.39655]
[1724985300615,3.2078,2521.8,2521.7,0.8223]
[1724985301017,7.1734,2521.8,2521.7,0.8223]
[1724985301320,3.2078,2521.8,2521.7,1.21883]
[1724985301526,0.40243132,2522.1,2521.7,1.21883]
[1724985301827,0.00595132,2522.1,2521.8,0.81861]
[1724985302326,0.40243132,2522.1,2521.8,0.4221]
[1724985302719,0.40243132,2522.1,2521.8,0.81862]
[1724985303012,0.00595132,2522.1,2521.6,1.0374576]
[1724985303219,0.39651,2521.9,2521.5,1.4470576]
[1724985303522,0.40243132,2522.1,2521.7,0.39653]
[1724985303726,0.40243132,2522.1,2521.7,1.4339876]
[1724985304321,0.39649,2522.0,2521.7,0.39653]
[1724985304525,0.00595132,2522.1,2521.9,0.3965]
[1724985304715,0.00595132,2522.1,2522.0,0.8246]
[1724985305719,0.00595132,2522.1,2522.0,1.22109]
[1724985307125,0.00595132,2522.1,2522.0,2.2585476]
[1724985307330,0.00595132,2522.1,2522.0,1.22109]
[1724985307721,0.00595132,2522.1,2522.0,2.2585476]
[1724985308431,0.00595132,2522.1,2522.0,1.22109]
[1724985308630,0.00595132,2522.1,2522.0,2.2585476]
[1724985309017,10.8118,2522.9,2522.2,0.39645]
[1724985309218,0.39645,2522.2,2522.1,1.03902058]
[1724985309522,0.39649,2522.1,2521.9,1.03902058]
[1724985309830,0.39647,2522.2,2521.9,1.03902058]
[1724985310020,0.39647,2522.1,2521.9,1.03902058]
[1724985310328,0.39649,2522.0,2521.8,0.00595132]
[1724985311429,4.31390899,2522.2,2521.8,0.00595132]
[1724985311820,4.47835132,2522.3,2521.9,0.39649]
[1724985311821,4.87479132,2522.3,2521.9,0.39649]
[1724985312535,5.46946132,2522.3,2521.8,0.00595132]
[1724985312722,0.39648,2522.1,2521.8,0.00595132]
[1724985313424,0.39649,2522.0,2521.8,0.00595132]
[1724985313635,3.6043,2521.9,2521.8,0.00595132]
[1724985314231,3.2078,2521.9,2521.8,0.00595132]
[1724985314624,3.6043,2521.9,2521.8,0.00595132]
[1724985314825,3.2078,2521.9,2521.8,0.00595132]
[1724985315431,3.6043,2521.9,2521.8,0.00595132]
[1724985315929,8.56116,2521.9,2521.8,0.00595132]
[1724985316230,14.16466,2521.9,2521.1,0.4061]
[1724985316430,0.3966,2521.3,2521.1,0.4061]
[1724985316936,3.82659,2521.4,2521.1,0.4061]
[1724985317736,0.39659,2521.4,2521.1,0.4061]
[1724985318636,0.39657,2521.5,2521.1,0.80272]
[1724985318822,3.2078,2521.6,2521.1,0.80272]
[1724985319029,3.2078,2521.6,2521.2,0.4297]
[1724985319229,3.2078,2521.6,2521.4,0.39657]
[1724985319425,3.2078,2521.6,2521.5,0.4182]
[1724985319931,3.2078,2521.6,2521.5,4.78036]
[1724985320538,3.2078,2522.2,2522.0,0.39648]
[1724985320732,3.2078,2522.2,2522.0,41.19648]
[1724985320935,0.00595132,2522.3,2522.1,0.39647]
[1724985321144,0.00595132,2522.3,2522.1,0.8536]
[1724985321330,0.00595132,2522.3,2522.1,0.4239]
[1724985321729,0.40239132,2522.3,2522.1,0.4239]
[1724985321932,0.39646,2522.2,2522.0,40.8]
[1724985324031,0.40239132,2522.3,2522.0,40.8]
[1724985324235,0.00595132,2522.3,2522.0,40.8]
[1724985324430,0.40239132,2522.3,2522.1,0.408]
[1724985324840,0.00595132,2522.3,2522.1,0.408]
[1724985325036,0.00595132,2522.3,2522.1,0.80446]
[1724985325231,0.00595132,2522.3,2522.2,0.39645]
[1724985325947,0.00595132,2522.3,2522.1,1.84311008]
[1724985326938,0.00595132,2522.3,2522.2,0.39645]
[1724985328941,0.00595132,2522.3,2522.1,1.84311008]
[1724985329247,0.00595132,2522.3,2522.2,0.39645]
[1724985329748,0.00595132,2522.3,2522.1,1.84311008]
[1724985330950,0.00595132,2522.3,2522.1,0.80446]
[1724985331356,0.00595132,2522.3,2522.2,0.39645]
[1724985332247,0.00595132,2522.3,2522.1,1.84311008]
[1724985332453,0.00595132,2522.3,2522.2,0.39645]
[1724985333555,3.97075132,2522.3,2522.0,1.03865008]
[1724985333753,0.39647,2522.1,2521.9,4.24645008]
[1724985333956,0.39647,2522.1,2521.9,3.2078]
[1724985334555,0.39649,2522.0,2521.9,3.2078]
[1724985335049,0.39648,2522.1,2521.9,3.2078]
[1724985335257,0.8135,2522.2,2522.0,0.39648]
[1724985335450,0.00595132,2522.3,2522.0,0.39647]
[1724985335847,0.00595132,2522.3,2521.9,4.24645008]
[1724985336059,0.00595132,2522.3,2522.2,0.39645]
[1724985336260,0.00595132,2522.3,2522.2,1.43510008]
[1724985336459,0.00595132,2522.3,2522.2,14.74284519]
[1724985336662,0.00595132,2522.3,2522.2,12.24055857]
[1724985337164,0.00595132,2522.3,2522.2,53.04055857]
[1724985337462,0.00595132,2522.3,2522.2,58.7506152]
[1724985338055,0.00595132,2522.3,2522.2,58.74978935]
[1724985338257,0.00595132,2522.3,2522.2,58.23055867]
[1724985338457,0.00595132,2522.3,2522.2,58.18371245]
[1724985338653,0.0023131,2522.3,2522.2,59.74092935]
[1724985338852,0.0023131,2522.3,2522.2,53.74092935]
[1724985339363,0.0023131,2522.3,2522.2,53.74092225]
[1724985340460,0.0023131,2522.3,2522.2,59.74092225]
[1724985341164,3.43,2523.2,2522.9,0.39634]
[1724985341367,0.4024,2523.1,2522.9,0.39634]
[1724985341574,0.8206,2523.2,2522.9,0.39634]
[1724985342571,0.4243,2523.2,2522.8,0.00595132]
[1724985342763,0.4243,2523.2,2522.9,0.39634]
[1724985342764,0.8206,2523.2,2522.9,0.39634]
[1724985342960,0.4243,2523.2,2522.8,0.00595132]
[1724985343267,0.39634,2522.9,2522.8,0.00595132]
[1724985343672,4.79194,2522.9,2522.8,0.00595132]
[1724985348566,11.78281,2522.9,2522.8,0.00595132]
[1724985348765,16.24289879,2522.9,2522.8,0.00595132]
[1724985348962,10.24289879,2522.9,2522.8,0.00595132]
[1724985350264,5.28802879,2522.9,2522.8,0.00595132]
[1724985350470,0.39634,2522.9,2522.8,0.00595132]
[1724985351658,4.36034,2522.9,2522.8,0.00595132]
[1724985354171,3.2078,2523.0,2522.8,0.00595132]
[1724985354372,0.82061,2523.2,2522.9,0.39634]
[1724985354580,0.82061,2523.2,2523.0,0.8186]
[1724985355265,0.4243,2523.2,2523.0,1.21493]
[1724985355875,0.4243,2523.2,2523.0,0.8186]
[1724985355876,0.8206,2523.2,2523.0,0.8186]
[1724985356173,0.8206,2523.2,2523.0,0.4025]
[1724985356174,0.39631,2523.1,2523.0,0.4025]
[1724985356372,0.82061,2523.2,2523.0,0.4025]
[1724985358073,0.4243,2523.2,2523.0,0.4025]
[1724985358377,0.00595132,2523.3,2523.0,0.79882]
[1724985359271,0.00595132,2523.3,2523.0,0.4025]
[1724985359471,0.00595132,2523.3,2523.1,0.4416]
[1724985359676,0.00595132,2523.3,2523.2,0.3963]
[1724985359880,0.00595132,2523.3,2523.2,4.3595]
[1724985361075,0.00595132,2523.3,2523.2,7.5673]
[1724985361276,0.00595132,2523.3,2523.2,15.22263097]
[1724985361871,0.00595132,2523.3,2523.2,9.22263097]
[1724985362170,0.00595132,2523.3,2523.2,8.1851252]
[1724985362772,0.00595132,2523.3,2523.2,4.9773252]
[1724985363282,0.00595132,2523.3,2523.2,4.58104767]
[1724985363466,0.00595132,2523.3,2523.2,4.97734767]
[1724985364774,0.00595132,2523.3,2523.2,4.58104767]
[1724985364981,0.40223132,2523.3,2523.2,0.61784767]
[1724985365673,0.00595132,2523.3,2523.2,0.61784767]
[1724985365871,0.40223132,2523.3,2523.2,0.61784767]
[1724985366072,0.00595132,2523.3,2523.2,0.61784767]
[1724985366278,0.40223132,2523.3,2523.2,0.61784767]
[1724985366476,0.40223132,2523.3,2523.2,0.61786815]
[1724985366782,0.40223132,2523.3,2523.2,0.61786204]
[1724985367377,0.00595132,2523.3,2523.2,0.61786204]
[1724985368776,0.40223132,2523.3,2523.2,0.61786204]
[1724985369777,0.00595132,2523.3,2523.0,0.79882]
[1724985370176,0.40223132,2523.3,2523.1,0.61787354]
[1724985370374,0.40223132,2523.3,2523.2,0.61787354]
[1724985370777,5.35614132,2523.3,2523.2,0.61787354]
[1724985370978,0.39634,2522.9,2522.8,0.00595132]
[1724985371180,0.39634,2522.9,2522.8,0.6238793]
[1724985371181,1.38721,2522.9,2522.8,0.6238793]
[1724985371480,22.21352352,2522.9,2522.8,0.00595132]
[1724985372283,0.39646,2522.2,2522.0,0.4258]
[1724985372582,0.39646,2522.2,2521.9,3.2078]
[1724985372583,0.39646,2522.2,2521.9,0.4389]
[1724985373083,0.39645,2522.3,2521.9,0.4389]
[1724985373483,0.39645,2522.3,2521.9,41.2389]
[1724985374387,0.39645,2522.3,2521.9,41.6354]
[1724985374984,0.39645,2522.3,2521.9,41.2389]
[1724985375887,0.39646,2522.2,2521.9,41.2389]
[1724985377883,3.2078,2522.4,2521.9,41.2389]
[1724985378091,0.39645,2522.3,2521.9,41.2389]
[1724985378288,4.96949152,2522.3,2521.9,41.2389]
[1724985378485,4.96949152,2522.3,2521.9,41.6354]
[1724985378787,0.39645,2522.3,2521.9,41.6354]
[1724985381689,0.39648,2522.1,2521.9,41.2389]
[1724985381886,0.4359,2522.0,2521.9,41.2389]
[1724985386287,0.83239,2522.0,2521.9,41.2389]
[1724985386786,0.4359,2522.0,2521.9,41.2389]
[1724985387190,0.83239,2522.0,2521.9,41.2389]
[1724985392093,0.83239,2522.0,2521.9,0.4389]
[1724985392902,1.38776,2521.9,2521.8,0.00595132]
[1724985393095,1.38776,2521.9,2521.1,1.03750577]
[1724985393096,0.99133,2521.8,2521.3,0.8838]
[1724985393302,0.39658,2521.4,2521.3,0.4441]
[1724985395708,4.36298,2521.4,2521.3,0.4441]
[1724985395898,0.39661,2521.2,2521.1,3.64695132]
[1724985399503,0.39661,2521.2,2521.1,0.43915132]
[1724985402995,4.36301,2521.2,2521.1,0.00595132]
[1724985403404,8.78455,2521.2,2521.1,0.00595132]
[1724985404205,0.39667,2520.8,2520.7,0.8831]
[1724985404395,0.39667,2520.8,2520.7,0.439]
[1724985411313,0.3967,2520.7,2520.5,0.00595132]
[1724985412001,0.3967,2520.7,2520.5,40.80595132]
[1724985418717,0.39668,2520.8,2520.5,40.80595132]
[1724985419010,4.2848,2520.9,2520.5,40.80595132]
[1724985419011,0.39669,2520.7,2520.5,40.80595132]
[1724985425919,1.82671,2520.6,2520.5,40.80595132]
[1724985426116,5.79391,2520.6,2520.5,40.80595132]
[1724985426320,1.82671,2520.6,2520.5,40.80595132]
[1724985428015,5.79391,2520.6,2520.5,0.00595132]
[1724985428219,6.78568,2520.6,2520.5,0.00595132]
[1724985428516,0.39678,2520.2,2520.1,0.4276]
[1724985429015,0.39678,2520.2,2520.1,4.3956]
[1724985430115,0.39676,2520.3,2520.1,4.3956]
[1724985430412,1.43,2520.6,2520.1,0.82437]
[1724985430619,0.39673,2520.5,2520.2,0.39677]
[1724985430816,0.39673,2520.5,2520.1,0.82437]
[1724985431012,0.39673,2520.5,2520.2,0.39677]
[1724985431209,0.39674,2520.4,2520.1,0.82438]
[1724985431414,1.82674,2520.4,2520.1,0.4276]
[1724985433223,1.82674,2520.4,2520.1,0.82438]
[1724985437224,1.82674,2520.4,2520.2,0.39677]
[1724985437225,1.43,2520.4,2520.2,0.39677]
[1724985437437,0.39673,2520.5,2520.2,0.39677]
[1724985439228,4.6378,2520.6,2520.3,0.39675]
[1724985439742,3.2078,2520.6,2520.4,0.416]
[1724985440026,3.2078,2520.6,2520.5,1.27342]
[1724985440228,3.2078,2520.9,2520.5,0.8767]
[1724985440416,3.2078,2520.9,2520.7,0.39668]
[1724985440620,3.2078,2520.9,2520.8,0.81267]
[1724985440817,0.874,2521.3,2520.9,0.39665]
[1724985440818,0.4424,2521.3,2520.9,0.39665]
[1724985441022,2.269,2521.3,2520.9,0.84815]
[1724985441221,2.269,2521.3,2521.0,0.4252]
[1724985441222,0.39661,2521.2,2521.0,0.4252]
[1724985441424,0.39661,2521.2,2520.7,4.24530577]
[1724985441425,1.43,2521.1,2520.6,1.03750577]
[1724985441733,1.43,2520.8,2520.6,0.3967]
[1724985441919,1.82666,2520.9,2520.5,2.73781577]
[1724985442120,1.43,2520.9,2520.5,2.31092577]
[1724985442320,1.43,2520.9,2520.5,1.70032]
[1724985442518,1.82667,2520.9,2520.6,0.3967]
[1724985443225,1.82667,2520.9,2520.5,2.73781577]
[1724985443729,0.39668,2520.8,2520.5,2.34110577]
[1724985443931,1.43,2520.7,2520.5,0.4515]
[1724985444124,1.8267,2520.7,2520.5,0.4515]
[1724985444320,1.82671,2520.6,2520.5,0.4515]
[1724985444625,2.25571,2520.6,2520.4,1.03750577]
[1724985444929,2.25571,2520.6,2520.4,1.46260577]
[1724985445629,2.25571,2520.6,2520.4,0.4251]
[1724985445831,1.859,2520.6,2520.4,0.4251]
[1724985446628,1.43,2520.6,2520.4,0.4251]
[1724985446836,1.43,2520.6,2520.4,1.46260577]
[1724985447126,1.43,2520.6,2520.4,1.85934577]
[1724985447640,1.8628,2520.8,2520.5,0.39672]
[1724985447827,1.8628,2520.8,2520.6,0.8508]
[1724985448236,1.43,2520.8,2520.6,0.8508]
[1724985449529,1.82668,2520.8,2520.5,1.03750577]
[1724985449726,0.4138,2520.7,2520.5,1.03750577]
[1724985449934,0.4138,2520.7,2520.4,5.06713577]
[1724985450237,0.4138,2520.7,2520.5,0.39672]
[1724985450633,0.4315,2520.6,2520.5,0.39672]
[1724985451033,0.4315,2520.6,2520.5,1.43422577]
[1724985452723,1.43,2520.8,2520.5,6.98866501]
[1724985452932,1.43,2520.9,2520.8,0.39667]
[1724985453533,1.43,2520.9,2520.6,1.45320577]
[1724985453534,1.43,2520.9,2520.7,0.39668]
[1724985455127,0.859,2521.0,2520.8,0.39667]
[1724985455342,1.43,2521.0,2520.8,0.39666]
[1724985455632,1.43,2521.0,2520.9,0.4518]
[1724985456126,1.82664,2521.0,2520.7,1.43418577]
[1724985456329,0.427,2520.9,2520.7,1.88598577]
[1724985456530,0.427,2520.9,2520.7,0.84848]
[1724985457428,0.427,2520.9,2520.8,0.39667]
[1724985460841,1.43,2521.0,2520.8,0.39667]
[1724985461031,1.8544,2521.2,2521.0,0.39664]
[1724985461226,1.8544,2521.2,2521.1,0.81433]
[1724985461440,5.096,2521.4,2521.3,0.3966]
[1724985461640,1.8882,2521.4,2521.3,0.3966]
[1724985462242,1.43,2521.4,2521.3,0.3966]
[1724985462742,0.00595132,2521.6,2521.3,3.9664]
[1724985463040,0.00595132,2521.6,2521.1,42.20925]
[1724985463041,0.00595132,2521.6,2521.5,0.39656]
[1724985464034,0.00595132,2521.6,2521.5,1.27656]
[1724985464240,0.00595132,2521.6,2521.5,5.24216]
[1724985467833,0.00595132,2521.6,2521.5,0.39656]
[1724985468040,0.85995132,2521.6,2521.5,0.39656]
[1724985468847,0.85995132,2521.6,2521.2,0.44525132]
[1724985469036,0.4466,2521.5,2521.2,0.44525132]
[1724985469339,0.4466,2521.5,2521.4,0.39658]
[1724985469543,1.8766,2521.5,2521.2,0.44525132]
[1724985469736,0.3966,2521.3,2521.2,0.00595132]
[1724985470139,4.363,2521.3,2521.2,0.00595132]
[1724985471637,3.9664,2521.3,2521.2,0.00595132]
[1724985471838,4.363,2521.3,2521.2,0.00595132]
[1724985472941,0.3966,2521.3,2521.2,0.00595132]
[1724985473439,4.363,2521.3,2521.2,0.00595132]
[1724985475444,3.2078,2521.4,2521.3,0.3966]
[1724985475643,3.2078,2521.4,2521.3,0.841]
[1724985475844,4.6378,2521.4,2521.3,0.841]
[1724985476046,4.6378,2521.4,2521.2,0.40255132]
[1724985477261,1.43,2521.4,2521.2,0.40255132]
[1724985478751,1.43,2521.4,2521.3,0.3966]
[1724985478950,0.4466,2521.5,2521.3,0.8592]
[1724985479248,0.4466,2521.5,2521.3,1.3155]